bitfinex-derivatives/quotes_ETHF0:USTF0_20251009
["timestamp","ask_amount","ask_price","bid_price","bid_amount"]
[1759969616095,3.71474697,4527.5,4527.4,0.84095]
[1759969616487,3.71474697,4527.5,4527.4,0.61455]
[1759969617901,4.11219697,4527.5,4527.4,0.61455]
[1759969618397,3.71474697,4527.5,4527.4,0.61455]
[1759969618600,3.71474697,4527.5,4527.4,1.16405]
[1759969618901,4.11219697,4527.5,4527.4,1.16405]
[1759969619089,4.11219697,4527.5,4527.4,0.84095]
[1759969619284,3.71474697,4527.5,4527.4,0.84095]
[1759969619489,3.71474697,4527.5,4527.1,0.3231]
[1759969619490,0.7565,4526.2,4526.1,0.2171]
[1759969619691,0.567,4526.0,4525.9,0.61468]
[1759969619897,0.8893,4526.0,4525.9,0.61468]
[1759969620094,3.725329,4526.0,4525.9,0.61468]
[1759969620293,3.725329,4526.0,4525.6,0.3231]
[1759969620294,0.2147,4525.4,4525.3,3.4249]
[1759969620488,0.5397995,4525.4,4525.3,4.59467509]
[1759969620704,0.0027995,4525.4,4525.3,4.59467509]
[1759969621297,0.0027995,4525.4,4525.3,4.19703509]
[1759969621298,3.57592778,4525.4,4525.3,4.19703509]
[1759969621498,0.7592995,4525.4,4525.3,4.19703509]
[1759969622006,0.7592995,4525.4,4525.3,3.87393509]
[1759969622195,0.7592995,4525.4,4525.3,3.42653509]
[1759969622495,3.68569277,4525.4,4525.3,0.22263509]
[1759969623502,3.68569277,4525.4,4525.3,0.00163509]
[1759969625492,8.68569277,4525.4,4525.3,0.00163509]
[1759969629297,8.68569277,4525.4,4524.0,0.99439]
[1759969629298,0.7478,4523.9,4523.8,3.81827]
[1759969629500,0.7478,4523.9,4523.8,5.42372473]
[1759969629902,0.7478,4523.9,4523.8,4.96792473]
[1759969630099,0.7478,4523.9,4523.8,3.82936925]
[1759969630602,0.7478,4523.9,4523.8,0.62156925]
[1759969631306,0.7478,4523.9,4523.8,0.83426925]
[1759969633610,0.7478,4523.9,4523.8,1.76202398]
[1759969634005,0.7478,4523.9,4523.8,2.30272398]
[1759969634302,0.7478,4523.9,4523.8,1.98392398]
[1759969636112,0.7478,4523.9,4523.8,2.30272398]
[1759969638707,0.7478,4523.9,4523.8,5.51052398]
[1759969639611,0.7478,4523.9,4523.8,3.21059925]
[1759969639612,1.14556,4523.9,4523.8,3.21059925]
[1759969639817,3.96045517,4523.9,4523.8,0.00279925]
[1759969646822,3.96045517,4523.9,4523.8,0.40056925]
[1759969647422,0.39782,4523.3,4522.9,0.02210995]
[1759969647714,0.7478,4523.4,4522.9,0.63265995]
[1759969647715,0.8829,4523.0,4522.9,0.63265995]
[1759969648520,0.8829,4523.0,4522.9,0.63500428]
[1759969649514,0.5242,4523.0,4522.9,1.17570428]
[1759969649718,0.1351,4523.5,4522.9,1.17570428]
[1759969649719,0.8829,4523.5,4523.4,0.61051]
[1759969650020,4.17162832,4523.5,4523.4,0.61051]
[1759969650221,4.17162832,4523.5,4523.4,0.39781]
[1759969650621,3.77382832,4523.5,4523.4,0.39781]
[1759969651321,3.77382832,4523.5,4523.4,0.61051]
[1759969651522,3.77382832,4523.5,4523.4,0.39781]
[1759969651820,4.17162832,4523.5,4523.4,0.39781]
[1759969652618,3.77382832,4523.5,4523.4,0.39781]
[1759969653229,4.2658949,4523.5,4523.4,0.39781]
[1759969653625,4.6636949,4523.5,4523.4,0.39781]
[1759969654824,4.2658949,4523.5,4523.4,0.39781]
[1759969655826,3.77382832,4523.5,4523.4,0.39781]
[1759969656226,4.26599851,4523.5,4523.4,0.39781]
[1759969656425,3.77382832,4523.5,4523.4,0.39781]
[1759969657327,4.26606884,4523.5,4523.4,0.39781]
[1759969657726,4.17162832,4523.5,4523.4,0.39781]
[1759969657922,4.66386885,4523.5,4523.4,0.39781]
[1759969658127,4.26606885,4523.5,4523.4,0.39781]
[1759969660718,0.2106,4523.9,4523.5,0.99449]
[1759969661025,3.68641871,4523.9,4523.8,1.76702473]
[1759969661331,4.17888464,4523.9,4523.8,1.76702473]
[1759969661528,4.17888464,4523.9,4523.8,0.83927]
[1759969662419,3.68641871,4523.9,4523.8,1.15487]
[1759969662820,3.68641871,4523.9,4523.8,0.83927]
[1759969663030,4.17901966,4523.9,4523.8,0.83947]
[1759969663327,3.68641871,4523.9,4523.8,0.83947]
[1759969664521,3.68641871,4523.9,4523.8,1.04907]
[1759969664719,3.26791871,4523.9,4523.8,1.37847]
[1759969664923,3.48331871,4523.9,4523.8,1.37847]
[1759969665325,3.69901871,4523.9,4523.8,1.37847]
[1759969666729,3.26791871,4523.9,4523.8,1.37847]
[1759969668933,3.48331871,4523.9,4523.8,1.37847]
[1759969669833,3.48331871,4523.9,4523.8,2.1812442]
[1759969670439,3.26791871,4523.9,4523.8,2.1812442]
[1759969670827,3.69901871,4523.9,4523.8,2.1812442]
[1759969676336,3.48331871,4523.9,4523.8,2.1812442]
[1759969676636,3.26791871,4523.9,4523.8,2.1812442]
[1759969677430,3.48331871,4523.9,4523.8,2.1812442]
[1759969679141,3.69901871,4523.9,4523.8,2.1812442]
[1759969680335,4.09677871,4523.9,4523.8,2.1812442]
[1759969680541,3.69901871,4523.9,4523.8,0.61877]
[1759969681337,0.7584,4523.8,4523.7,0.39777]
[1759969681528,1.15617,4523.8,4523.7,0.61877]
[1759969681729,0.7584,4523.8,4523.7,0.61877]
[1759969682438,0.7584,4523.8,4523.7,1.37427]
[1759969682739,0.5427,4523.8,4523.7,1.37427]
[1759969683941,3.2078,4524.4,4524.3,0.39773]
[1759969684244,7.24618178,4524.4,4524.3,0.61423]
[1759969685240,7.24618178,4524.4,4524.3,0.48673]
[1759969686639,7.73992057,4524.4,4524.3,0.089]
[1759969686941,8.54269477,4524.4,4524.3,0.089]
[1759969688943,8.54269477,4524.4,4524.3,0.48673]
[1759969689843,4.53212057,4524.4,4524.3,0.48673]
[1759969690248,4.13440057,4524.4,4524.3,0.92383]
[1759969692146,4.53212057,4524.4,4524.3,0.69773]
[1759969692346,4.53212057,4524.4,4524.3,0.48673]
[1759969693347,4.13440057,4524.4,4524.3,0.48673]
[1759969695448,4.53212057,4524.4,4524.3,0.48673]
[1759969697748,4.13440057,4524.4,4524.3,0.48673]
[1759969698549,4.13440057,4524.4,4524.3,0.69773]
[1759969698745,4.13440057,4524.4,4524.3,1.24163]
[1759969698944,3.70520057,4524.4,4524.3,1.24163]
[1759969699247,4.12870057,4524.4,4524.3,1.24163]
[1759969699449,3.63496178,4524.4,4524.3,1.24163]
[1759969700149,4.03268178,4524.4,4524.3,0.48673]
[1759969700648,4.52694222,4524.4,4524.3,0.48673]
[1759969700849,4.12922222,4524.4,4524.3,0.48673]
[1759969704643,4.52694222,4524.4,4524.3,0.48673]
[1759969705752,4.12922222,4524.4,4524.3,0.48673]
[1759969706755,4.12922222,4524.4,4524.3,0.69773]
[1759969706955,4.12922222,4524.4,4524.3,1.24163]
[1759969707756,3.63496178,4524.4,4524.3,2.0444042]
[1759969709958,3.63496178,4524.4,4524.3,0.92383]
[1759969711164,4.03268178,4524.4,4524.3,0.92383]
[1759969711348,4.03268178,4524.4,4524.3,0.48673]
[1759969711349,4.12905288,4524.4,4524.3,0.48673]
[1759969711556,4.12905288,4524.4,4524.3,0.69773]
[1759969711860,4.12905288,4524.4,4524.3,0.92383]
[1759969714860,4.12905288,4524.4,4524.3,0.48673]
[1759969715672,4.52677288,4524.4,4524.3,0.089]
[1759969715968,4.52677288,4524.4,4524.3,0.48673]
[1759969717769,4.52677288,4524.4,4524.3,0.089]
[1759969718771,4.52677288,4524.4,4524.3,0.48673]
[1759969719068,4.52677288,4524.4,4524.3,0.089]
[1759969719069,4.74777288,4524.4,4524.3,0.089]
[1759969721369,4.74777288,4524.4,4524.3,0.48673]
[1759969722066,4.74777288,4524.4,4524.3,0.089]
[1759969730972,4.74777288,4524.4,4524.3,0.48673]
[1759969736177,4.74777288,4524.4,4524.3,0.089]
[1759969737077,4.74777288,4524.4,4524.3,0.48673]
[1759969742282,4.35005288,4524.4,4524.3,0.48673]
[1759969742482,4.35005288,4524.4,4524.3,0.70033]
[1759969742483,4.12905288,4524.4,4524.3,0.70033]
[1759969742671,4.12905288,4524.4,4524.3,0.48673]
[1759969743481,4.52677288,4524.4,4524.3,0.48673]
[1759969743678,4.03268178,4524.4,4524.3,0.48673]
[1759969743980,4.52704718,4524.4,4524.3,0.48673]
[1759969744977,4.12932718,4524.4,4524.3,0.48673]
[1759969749789,4.12932718,4524.4,4524.3,0.089]
[1759969749790,4.52704718,4524.4,4524.3,0.089]
[1759969750189,4.52704718,4524.4,4524.3,0.48673]
[1759969750585,4.52704718,4524.4,4524.3,0.089]
[1759969750890,4.52704718,4524.4,4524.3,0.48673]
[1759969751085,4.52704718,4524.4,4524.3,0.089]
[1759969752484,4.52704718,4524.4,4524.3,0.48673]
[1759969755108,4.12932718,4524.4,4524.3,0.48673]
[1759969755286,4.52704718,4524.4,4524.3,0.089]
[1759969755483,0.7634,4523.7,4523.6,0.39779]
[1759969755687,4.46551061,4523.7,4523.6,0.39779]
[1759969755884,7.27690423,4523.7,4523.6,0.39779]
[1759969756490,0.5695,4523.5,4523.4,0.3978]
[1759969756692,0.8973,4523.5,4523.4,0.3978]
[1759969756888,3.82037016,4523.5,4523.4,0.3978]
[1759969757590,3.82037016,4523.5,4522.9,0.02445428]
[1759969757783,0.8973,4523.0,4522.9,0.42230428]
[1759969757989,0.8973,4523.0,4522.9,0.02445428]
[1759969758296,3.76542725,4523.0,4522.9,0.02445428]
[1759969759093,4.25907269,4523.0,4522.9,0.02445428]
[1759969759287,3.76542725,4523.0,4522.9,0.02445428]
[1759969761887,4.258347,4523.0,4522.9,0.02445428]
[1759969764189,4.16326725,4523.0,4522.9,0.02445428]
[1759969764390,3.76542725,4523.0,4522.9,0.02445428]
[1759969764696,3.98642725,4523.0,4522.9,0.02445428]
[1759969764889,4.38426725,4523.0,4522.9,0.02445428]
[1759969766996,3.98642725,4523.0,4522.9,0.02445428]
[1759969769001,4.38426725,4523.0,4522.9,0.02445428]
[1759969770500,3.98642725,4523.0,4522.9,0.02445428]
[1759969772296,0.39785,4522.9,4522.5,0.39788]
[1759969772502,1.69245694,4522.6,4522.5,0.39788]
[1759969772795,4.74282763,4522.6,4522.5,0.39788]
[1759969773301,4.74282763,4522.6,4522.5,0.39978855]
[1759969774514,4.74282763,4522.6,4522.5,0.00190855]
[1759969775497,5.14070763,4522.6,4522.5,0.00190855]
[1759969776396,0.1339,4522.0,4521.9,0.39794]
[1759969776701,7.00383551,4522.0,4521.9,0.39794]
[1759969777504,7.0057919,4522.0,4521.9,0.39973943]
[1759969778799,7.0057919,4522.0,4521.9,0.00179943]
[1759969779394,7.0057919,4522.0,4521.9,0.39973943]
[1759969779903,7.0057919,4522.0,4521.9,0.00179943]
[1759969781406,7.4037219,4522.0,4521.9,0.00179943]
[1759969784103,0.4423,4521.3,4521.2,0.398]
[1759969784308,0.7779,4521.3,4521.2,0.398]
[1759969784611,3.67634741,4521.3,4521.2,0.398]
[1759969785206,3.67634741,4521.3,4521.2,0.40058101]
[1759969786717,3.67634741,4521.3,4521.2,1.16088101]
[1759969787413,3.67634741,4521.3,4521.2,0.83998101]
[1759969790010,3.67634741,4521.3,4521.2,0.62148101]
[1759969794514,3.67634741,4521.3,4521.2,1.16088101]
[1759969795616,0.3356,4521.7,4521.6,0.4394]
[1759969795825,0.55935639,4522.0,4521.9,1.15824]
[1759969796018,0.55935639,4522.0,4521.9,1.96208059]
[1759969796218,3.54488026,4522.0,4521.9,1.96208059]
[1759969796924,3.41008026,4522.0,4521.9,1.96208059]
[1759969797219,3.76538026,4522.0,4521.9,1.96208059]
[1759969797815,3.76538026,4522.0,4521.9,0.83734]
[1759969800621,2.85268026,4522.0,4521.9,1.96208059]
[1759969800824,0.00195639,4522.0,4521.9,6.96208059]
[1759969803016,0.5771,4523.5,4523.4,0.39781]
[1759969803219,0.5771,4524.0,4523.9,0.39776]
[1759969803418,3.2078,4524.1,4523.9,1.96190059]
[1759969803623,3.5434,4524.1,4524.0,0.7603]
[1759969804014,0.00206017,4524.1,4524.0,0.8855]
[1759969804215,2.90206017,4524.6,4524.5,0.52731]
[1759969804420,2.90206017,4524.6,4524.5,1.28761]
[1759969804619,6.04474187,4524.6,4524.5,1.28761]
[1759969805124,5.60244187,4524.6,4524.5,1.28761]
[1759969805318,5.60460964,4524.6,4524.5,1.29030803]
[1759969805828,6.04690964,4524.6,4524.5,0.00269803]
[1759969806022,5.82640964,4524.6,4524.5,0.89259803]
[1759969806825,5.60460964,4524.6,4524.5,0.89259803]
[1759969808026,0.00216777,4524.6,4524.5,5.89259803]
[1759969808818,3.58529459,4524.6,4524.5,0.89259803]
[1759969809024,3.58529459,4524.6,4524.5,1.11359803]
[1759969809235,6.79309459,4524.6,4524.5,0.00269803]
[1759969817931,6.79309459,4524.6,4524.5,0.40040803]
[1759969819032,7.19079459,4524.6,4524.5,0.00269803]
[1759969822329,7.19079459,4524.6,4524.5,0.40040803]
[1759969826231,7.19079459,4524.6,4524.5,0.73940803]
[1759969826736,7.19079459,4524.6,4524.5,0.96070803]
[1759969826925,7.19079459,4524.6,4524.5,0.40040803]
[1759969828334,6.79309459,4524.6,4524.5,0.40040803]
[1759969828536,7.19079459,4524.6,4524.5,0.40040803]
[1759969831039,7.19079459,4524.6,4524.5,0.73940803]
[1759969831438,7.68252542,4524.6,4524.5,0.00269803]
[1759969831641,0.7523,4524.1,4524.0,0.39774]
[1759969832041,3.63567491,4524.1,4524.0,0.39774]
[1759969832539,4.12797847,4524.1,4524.0,0.39774]
[1759969832758,4.12797847,4524.1,4524.0,0.40005152]
[1759969833744,4.52604529,4524.1,4524.0,0.40005152]
[1759969834251,4.12830529,4524.1,4524.0,0.73905152]
[1759969834644,4.12830529,4524.1,4524.0,0.00231152]
[1759969834645,4.52604529,4524.1,4524.0,0.00231152]
[1759969834838,7.73384529,4524.1,4524.0,0.40006152]
[1759969835542,7.73384529,4524.1,4524.0,0.00231152]
[1759969836143,7.95484529,4524.1,4524.0,0.00231152]
[1759969836449,7.95484529,4524.1,4522.6,5.7885518]
[1759969836450,0.8598,4523.0,4522.9,0.39785]
[1759969836750,3.79097319,4523.0,4522.9,0.39785]
[1759969837248,3.79097319,4523.0,4522.9,0.39942618]
[1759969838550,3.79097319,4523.0,4522.9,0.00157618]
[1759969838944,4.28289714,4523.0,4522.9,0.00157618]
[1759969839144,4.50389714,4523.0,4522.9,0.00157618]
[1759969841551,4.01197319,4523.0,4522.9,0.00157618]
[1759969842547,0.7503,4521.8,4521.7,0.39795]
[1759969842857,0.7425,4521.3,4521.2,0.7364]
[1759969843551,0.7425,4521.3,4521.2,1.13706714]
[1759969843552,0.74444262,4521.3,4521.2,1.13706714]
[1759969843752,3.62512483,4521.3,4521.2,0.00266714]
[1759969846058,0.7449,4520.8,4520.7,0.39804]
[1759969846554,3.6279639,4520.8,4520.7,0.39804]
[1759969846950,3.6279639,4520.8,4520.7,0.40089762]
[1759969848857,3.6279639,4520.8,4520.7,0.00285762]
[1759969855763,3.8489639,4520.8,4520.7,0.00285762]
[1759969857064,4.2470039,4520.8,4520.7,0.00285762]
[1759969858267,4.2470039,4520.8,4520.7,0.40089762]
[1759969858972,3.8489639,4520.8,4520.7,0.40089762]
[1759969859365,4.2470039,4520.8,4520.7,0.40089762]
[1759969860962,4.2470039,4520.8,4520.7,0.00285762]
[1759969861468,4.2470039,4520.8,4519.7,0.3264]
[1759969861469,0.4301,4519.8,4519.7,0.39813]
[1759969861968,3.68191549,4519.8,4519.7,0.39813]
[1759969862266,3.68191549,4519.8,4519.7,0.40028594]
[1759969864267,3.36711549,4519.8,4519.7,1.16638594]
[1759969864787,2.93701549,4519.8,4519.7,6.16638594]
[1759969864972,3.2078,4520.7,4520.6,1.16415]
[1759969865267,3.7405,4520.7,4520.6,1.16415]
[1759969865469,3.4257,4520.7,4520.6,1.16415]
[1759969866266,0.96784262,4521.3,4521.2,0.9446]
[1759969867357,0.96784262,4521.3,4521.2,0.398]
[1759969868058,0.74684262,4521.3,4521.2,0.9446]
[1759969868267,2.90382539,4521.3,4521.2,1.1641]
[1759969868670,3.12172539,4521.3,4521.2,1.1641]
[1759969868864,3.64882539,4521.3,4521.2,1.1641]
[1759969869064,3.33362539,4521.3,4521.2,1.1641]
[1759969869366,2.90382539,4521.3,4521.2,1.1641]
[1759969870270,3.2078,4521.9,4521.8,0.7737]
[1759969870462,0.7476,4522.3,4522.2,1.17161]
[1759969870865,3.14263571,4522.3,4522.2,1.17161]
[1759969871269,3.14263571,4522.3,4522.2,7.32322574]
[1759969871270,0.00273907,4522.3,4522.2,7.32322574]
[1759969871963,3.2078,4522.9,4522.8,0.4516]
[1759969872164,0.135,4524.0,4522.8,0.4516]
[1759969872165,3.4283,4523.4,4523.3,0.84942]
[1759969872371,3.9554,4523.4,4523.3,1.17152]
[1759969872870,3.6402,4523.4,4523.3,1.17152]
[1759969873075,0.00215965,4523.4,4523.3,2.10468214]
[1759969873279,0.00215965,4523.4,4523.3,2.32568214]
[1759969873973,0.00215965,4523.4,4523.3,7.32568214]
[1759969874176,0.00215965,4523.4,4523.3,6.3950664]
[1759969874477,0.22265965,4523.4,4523.3,6.3950664]
[1759969875270,0.43455965,4523.4,4523.3,6.3950664]
[1759969875478,0.74975965,4523.4,4523.3,0.8475664]
[1759969875676,0.74975965,4523.4,4523.3,1.1696664]
[1759969876473,0.43455965,4523.4,4523.3,1.3950664]
[1759969876673,0.22265965,4523.4,4523.3,1.3950664]
[1759969876885,3.59528104,4523.4,4523.3,0.0025464]
[1759969877380,3.59528104,4523.4,4523.3,0.5508464]
[1759969877782,3.59528104,4523.4,4523.3,0.7762464]
[1759969877983,3.28008104,4523.4,4523.3,0.7762464]
[1759969878689,3.59528104,4523.4,4523.3,0.7762464]
[1759969879086,2.84768104,4523.4,4523.3,0.7762464]
[1759969879386,0.7476,4524.3,4524.2,1.17144]
[1759969879784,0.7476,4524.3,4524.2,0.94604]
[1759969879984,3.62787346,4524.3,4524.2,0.94604]
[1759969880185,3.6297212,4524.3,4524.2,0.94604]
[1759969883191,0.4324,4524.0,4523.9,0.2262]
[1759969883392,0.7476,4524.0,4523.9,0.5483]
[1759969883592,3.75473281,4524.0,4523.8,0.221]
[1759969884192,3.75473281,4524.0,4523.9,0.39776]
[1759969884400,0.7476,4523.9,4523.8,0.39777]
[1759969884590,3.9554,4523.9,4523.8,0.39777]
[1759969884896,6.84864952,4523.9,4523.8,0.39777]
[1759969887000,6.84864952,4523.9,4523.8,1.17147]
[1759969888494,2.89324952,4523.9,4523.8,1.17147]
[1759969888696,3.11374952,4523.9,4523.8,1.17147]
[1759969888896,0.2205,4523.9,4523.8,1.17147]
[1759969889096,3.55724975,4523.9,4523.8,1.17147]
[1759969892300,3.24204975,4523.9,4523.8,1.17147]
[1759969892500,3.55724975,4523.9,4523.8,1.17147]
[1759969893596,3.55724975,4523.9,4523.8,0.39777]
[1759969894102,3.55724975,4523.9,4523.8,1.17147]
[1759969894398,7.16280975,4523.9,4523.8,0.39777]
[1759969895103,7.16280975,4523.9,4523.6,0.61878]
[1759969895104,1.14538,4523.7,4523.6,0.61878]
[1759969895403,3.99160925,4523.7,4523.6,0.39778]
[1759969896004,3.99160925,4523.7,4523.6,0.62398]
[1759969896205,3.59382925,4523.7,4523.6,0.94608]
[1759969896805,3.59382925,4523.7,4523.6,1.17148]
[1759969896999,3.27862925,4523.7,4523.6,1.17148]
[1759969897304,3.59382925,4523.7,4523.6,1.17148]
[1759969897801,3.27862925,4523.7,4523.6,1.17148]
[1759969898701,3.61672925,4523.7,4523.6,1.17148]
[1759969899205,4.10886036,4523.7,4523.6,1.17148]
[1759969901405,3.61672925,4523.7,4523.6,1.17148]
[1759969902106,4.1100322,4523.7,4523.6,1.17148]
[1759969903003,3.7719322,4523.7,4523.6,2.10074712]
[1759969903206,2.84622925,4523.7,4523.6,2.10074712]
[1759969907612,3.59782925,4523.7,4523.6,1.17148]
[1759969907809,1.24497391,4523.7,4523.6,0.39778]
[1759969908110,4.08788088,4523.7,4523.6,0.61878]
[1759969908511,7.69346088,4523.7,4523.6,0.61878]
[1759969908715,1.14941,4523.4,4523.3,0.0025464]
[1759969909012,1.64278391,4523.4,4523.3,0.0025464]
[1759969909210,4.5371348,4523.4,4523.3,0.0025464]
[1759969909603,4.5371348,4523.4,4523.3,0.4003664]
[1759969910219,4.5371348,4523.4,4523.3,0.0025464]
[1759969911609,4.5371348,4523.4,4522.3,0.3089]
[1759969911610,0.4206,4522.7,4522.3,0.3089]
[1759969911813,0.331,4522.4,4522.3,0.3979]
[1759969912108,3.56096911,4522.4,4522.3,0.3979]
[1759969912710,3.56096911,4522.4,4522.3,0.40018284]
[1759969913614,6.76876911,4522.4,4522.3,0.40018284]
[1759969914415,6.76876911,4522.4,4522.3,0.91388284]
[1759969914617,6.76876911,4522.4,4522.3,0.40018284]
[1759969914817,6.76876911,4522.4,4522.3,0.62118284]
[1759969915510,6.76876911,4522.4,4522.3,1.13488284]
[1759969918320,6.76876911,4522.4,4522.3,0.62118284]
[1759969918714,6.76876911,4522.4,4522.3,0.93008284]
[1759969919622,6.76876911,4522.4,4522.3,1.13488284]
[1759969921318,2.80936911,4522.4,4522.3,2.14391596]
[1759969921519,0.4206,4523.1,4523.0,1.24544]
[1759969921717,0.331,4523.0,4522.9,0.61884]
[1759969921918,3.73951125,4523.0,4522.9,0.39784]
[1759969922116,3.73951125,4523.0,4522.9,0.70674]
[1759969922312,0.7516,4522.8,4522.7,0.39786]
[1759969922518,0.7516,4522.8,4522.7,0.70676]
[1759969922718,3.61297161,4522.8,4522.7,0.91156]
[1759969923016,3.61297161,4522.8,4522.7,1.11706]
[1759969923919,3.06667161,4522.8,4522.7,1.11706]
[1759969924118,2.86137161,4522.8,4522.7,1.11706]
[1759969924520,0.2053,4522.8,4522.7,1.11706]
[1759969924912,3.03475651,4522.8,4522.7,1.11706]
[1759969926122,2.82945651,4522.8,4522.7,1.11706]
[1759969926517,0.331,4523.3,4523.2,0.39782]
[1759969926717,0.7516,4523.3,4523.2,0.39782]
[1759969926916,3.68420086,4523.3,4523.2,0.39782]
[1759969927120,3.68420086,4523.3,4523.2,0.70672]
[1759969927322,4.08202086,4523.3,4523.2,0.70672]
[1759969927620,4.08202086,4523.3,4523.2,0.39782]
[1759969928024,3.68420086,4523.3,4523.2,0.39782]
[1759969928522,4.08202086,4523.3,4523.2,0.39782]
[1759969929318,4.08202086,4523.3,4522.5,0.3247]
[1759969929319,0.7787,4522.6,4522.5,0.3247]
[1759969929525,0.7787,4522.6,4522.5,0.61889]
[1759969929723,3.58991643,4522.6,4522.5,0.61889]
[1759969930726,3.58991643,4522.6,4522.5,0.94359]
[1759969930926,3.58991643,4522.6,4522.5,1.15449]
[1759969931427,3.58991643,4522.6,4522.5,0.72259]
[1759969931622,0.7787,4522.4,4522.3,0.00228284]
[1759969931924,6.91599481,4522.4,4522.3,0.00228284]
[1759969935728,7.13799481,4522.4,4522.3,0.00228284]
[1759969936732,12.13799481,4522.4,4522.3,0.00228284]
[1759969937125,12.62984028,4522.4,4522.3,0.00228284]
[1759969944131,12.62984028,4522.4,4521.2,0.398]
[1759969944132,0.7787,4521.3,4521.2,0.398]
[1759969944333,0.7787,4521.3,4521.2,0.7227]
[1759969944531,3.69133465,4521.3,4521.2,0.9336]
[1759969945138,3.69133465,4521.3,4521.2,0.93567333]
[1759969946236,3.69133465,4521.3,4521.2,0.40007333]
[1759969946739,3.69133465,4521.3,4521.2,0.72477333]
[1759969947035,3.69133465,4521.3,4521.2,0.40007333]
[1759969947428,4.89285777,4521.3,4521.2,0.40007333]
[1759969947835,3.69133465,4521.3,4521.2,0.40007333]
[1759969949438,3.69133465,4521.3,4521.2,0.72477333]
[1759969949639,3.69133465,4521.3,4521.2,0.40007333]
[1759969950238,3.69133465,4521.3,4521.2,0.72477333]
[1759969951237,3.69133465,4521.3,4521.2,0.40007333]
[1759969952744,6.89913465,4521.3,4521.2,0.40007333]
[1759969953740,7.29712465,4521.3,4521.2,0.40007333]
[1759969954135,7.29712465,4521.3,4521.2,0.00207333]
[1759969954339,6.56903465,4521.3,4521.2,1.55370645]
[1759969954544,6.89913465,4521.3,4521.2,0.00207333]
[1759969959244,6.89913465,4521.3,4521.2,0.52207333]
[1759969961247,6.56903465,4521.3,4521.2,0.73117333]
[1759969961454,6.34523465,4521.3,4521.2,0.73117333]
[1759969961951,6.87943465,4521.3,4521.2,0.73117333]
[1759969962254,6.87943465,4521.3,4521.2,1.12917333]
[1759969963749,6.87943465,4521.3,4521.2,0.40007333]
[1759969964055,8.08095777,4521.3,4521.2,0.00207333]
[1759969964447,8.57531527,4521.3,4521.2,0.00207333]
[1759969969154,13.75607613,4521.3,4521.2,0.00207333]
[1759969969457,0.3143,4520.4,4520.3,0.39808]
[1759969969759,6.80478145,4520.4,4520.3,0.39808]
[1759969970054,7.20285145,4520.4,4520.3,0.39808]
[1759969970258,7.20496294,4520.4,4520.3,0.40079447]
[1759969971559,7.20496294,4520.4,4520.3,0.00271447]
[1759969971957,7.42696294,4520.4,4520.3,0.00271447]
[1759969972158,8.72469936,4520.4,4520.3,0.00271447]
[1759969973869,7.42696294,4520.4,4520.3,0.00271447]
[1759969975162,7.02889294,4520.4,4520.3,0.40079447]
[1759969975556,7.42696294,4520.4,4520.3,0.00271447]
[1759969976162,8.35771451,4520.4,4520.3,0.00271447]
[1759969977163,8.85126989,4520.4,4520.3,0.00271447]
[1759969980363,0.39813,4519.7,4519.1,0.99547]
[1759969980662,0.4157,4519.1,4518.8,1.08375157]
[1759969980861,0.73,4519.0,4518.9,0.9274]
[1759969981061,3.66261997,4519.0,4518.9,0.9274]
[1759969981269,0.73,4519.0,4518.9,0.9274]
[1759969981465,0.73,4519.0,4518.9,0.92971051]
[1759969982070,3.77361488,4519.0,4518.9,0.40051051]
[1759969982876,4.17180488,4519.0,4518.9,0.00231051]
[1759969983064,3.77361488,4519.0,4518.9,0.40051051]
[1759969983370,8.31035645,4519.0,4518.9,0.40051051]
[1759969983570,8.31035645,4519.0,4518.9,0.00231051]
[1759969984169,0.8555,4518.0,4517.9,0.222]
[1759969984472,0.73,4517.8,4517.7,0.3983]
[1759969984769,0.73,4517.8,4517.5,0.39832]
[1759969984770,3.2597567,4517.8,4517.5,0.39832]
[1759969984970,2.8440567,4517.8,4517.6,0.39831]
[1759969985270,0.73,4517.7,4517.6,0.40000911]
[1759969985466,0.73,4517.7,4516.6,3.2078]
[1759969985467,0.73,4517.1,4516.6,3.2078]
[1759969985671,0.73,4517.1,4516.5,0.4551]
[1759969985672,0.3143,4517.0,4516.5,0.4551]
[1759969985870,3.04927098,4517.0,4516.9,0.7426]
[1759969986068,3.57267098,4517.0,4516.9,0.323]
[1759969986276,3.57267098,4517.0,4516.9,0.5292]
[1759969986472,3.57267098,4517.0,4516.9,0.00280318]
[1759969986473,3.69846301,4517.0,4516.9,0.00280318]
[1759969986773,3.26036301,4517.0,4516.9,1.14378318]
[1759969986972,3.57466301,4517.0,4516.9,1.14378318]
[1759969987164,3.57466301,4517.0,4516.9,0.40118318]
[1759969987369,3.69846301,4517.0,4516.9,0.40118318]
[1759969987569,3.69846301,4517.0,4516.9,0.60738318]
[1759969987776,3.69846301,4517.0,4516.9,1.14378318]
[1759969987777,3.26036301,4517.0,4516.9,1.14378318]
[1759969988073,3.05126301,4517.0,4516.9,1.14378318]
[1759969988273,2.84466301,4517.0,4516.9,1.14378318]
[1759969988470,0.00199203,4517.0,4516.9,6.14378318]
[1759969988671,0.21179203,4517.0,4516.9,6.14378318]
[1759969989671,3.65375549,4517.0,4516.9,1.14378318]
[1759969989976,3.65375549,4517.0,4516.9,0.40118318]
[1759969989977,3.78195549,4517.0,4516.9,0.40118318]
[1759969998571,3.78195549,4517.0,4516.0,1.45443]
[1759969998572,0.7577,4516.4,4515.9,0.3262]
[1759969998773,0.7577,4515.9,4515.8,3.60628]
[1759969999179,3.60211804,4515.9,4515.8,3.60628]
[1759969999580,3.60211804,4515.9,4515.8,3.60908217]
[1759969999776,3.60211804,4515.9,4515.8,4.37688217]
[1759969999977,2.84441804,4515.9,4515.8,4.37688217]
[1759970000276,0.3357,4516.5,4515.8,8.97840217]
[1759970000472,0.2098,4516.5,4516.4,1.16622]
[1759970001084,0.422,4516.5,4516.4,1.16622]
[1759970001382,0.7577,4516.5,4516.4,1.16622]
[1759970002378,0.7577,4516.5,4516.4,0.39842]
[1759970002579,4.63159381,4516.5,4515.7,3.2078]
[1759970002883,4.63159381,4516.5,4515.8,0.40128217]
[1759970002884,0.7577,4515.9,4515.8,0.40128217]
[1759970003183,3.57534224,4515.9,4515.8,0.40128217]
[1759970007782,3.57534224,4515.9,4515.8,0.00280217]
[1759970008679,3.79834224,4515.9,4515.8,0.00280217]
[1759970012083,3.79834224,4515.9,4515.8,0.40128217]
[1759970012286,4.2987126,4515.9,4515.8,0.40128217]